fUSD/lending_fUSD_20260621
["ID","MTS","AMOUNT","RATE_DAILY","PERIOD"]
[425888870,1782024690000,-500.0,0.00028493,2]
[425888880,1782024690000,-500.0,0.00028493,2]
[425888918,1782024690000,-500.0,0.00028493,2]
[425888873,1782024690000,-500.0,0.00028493,2]
[425888876,1782024690000,-500.0,0.00028493,2]
[425888871,1782024690000,-500.0,0.00028493,2]
[425888869,1782024690000,-537.17092677,0.00028493,2]
[425888877,1782024690000,-500.0,0.00028493,2]
[425888874,1782024690000,-572.91516203,0.00028493,2]
[425888875,1782024690000,-500.0,0.00028493,2]
[425888902,1782024690000,-508.67006547,0.00028493,2]
[425888878,1782024690000,-1117.29,0.00028493,2]
[425888885,1782024690000,-719.15,0.00028493,2]
[425888888,1782024690000,-839.97,0.00028493,2]
[425888881,1782024690000,-373.85330644,0.00028493,2]
[425888886,1782024690000,-640.65051963,0.00028493,2]
[425888884,1782024690000,-500.0,0.00028493,2]
[425888883,1782024690000,-500.0,0.00028493,2]
[425888890,1782024690000,-642.15,0.00028493,2]
[425888889,1782024690000,-500.0,0.00028493,2]
[425888887,1782024690000,-250.66115658,0.00028493,2]
[425888891,1782024690000,-500.0,0.00028493,2]
[425888879,1782024690000,-500.0,0.00028493,2]
[425888924,1782024690000,-500.0,0.00028493,2]
[425888882,1782024690000,-500.0,0.00028493,2]
[425888921,1782024690000,-500.0,0.00028493,2]
[425888945,1782024690000,-500.0,0.00028493,2]
[425888947,1782024690000,-500.0,0.00028493,2]
[425888951,1782024690000,-500.0,0.00028493,2]
[425888953,1782024690000,-500.0,0.00028493,2]
[425888954,1782024690000,-500.0,0.00028493,2]
[425888957,1782024690000,-525.14810359,0.00028493,2]
[425888955,1782024690000,-1228.81,0.00028493,2]
[425888970,1782024690000,-500.0,0.00028493,2]
[425888956,1782024690000,-500.0,0.00028493,2]
[425888952,1782024690000,-500.0,0.00028493,2]
[425888948,1782024690000,-500.0,0.00028493,2]
[425888959,1782024690000,-500.0,0.00028493,2]
[425888960,1782024690000,-554.19,0.00028493,2]
[425888961,1782024690000,-534.9,0.00028493,2]
[425888964,1782024690000,-500.0,0.00028493,2]
[425888962,1782024690000,-500.0,0.00028493,2]
[425888965,1782024690000,-500.0,0.00028493,2]
[425888966,1782024690000,-500.0,0.00028493,2]
[425888969,1782024690000,-697.74,0.00028493,2]
[425888968,1782024690000,-500.0,0.00028493,2]
[425888967,1782024690000,-500.0,0.00028493,2]
[425888925,1782024690000,-500.0,0.00028493,2]
[425888958,1782024690000,-1282.4,0.00028493,2]
[425888943,1782024690000,-500.0,0.00028493,2]
[425888963,1782024690000,-1074.74,0.00028493,2]
[425888946,1782024690000,-500.0,0.00028493,2]
[425888944,1782024690000,-529.28065372,0.00028493,2]
[425888926,1782024690000,-500.0,0.00028493,2]
[425888919,1782024690000,-500.0,0.00028493,2]
[425888923,1782024690000,-593.6,0.00028493,2]
[425888915,1782024690000,-614.5,0.00028493,2]
[425888922,1782024690000,-832.03,0.00028493,2]
[425888929,1782024690000,-500.0,0.00028493,2]
[425888928,1782024690000,-368.1668151,0.00028493,2]
[425888931,1782024690000,-646.19920826,0.00028493,2]
[425888932,1782024690000,-500.0,0.00028493,2]
[425888936,1782024690000,-500.0,0.00028493,2]
[425888920,1782024690000,-503.92,0.00028493,2]
[425888930,1782024690000,-500.0,0.00028493,2]
[425888942,1782024690000,-500.0,0.00028493,2]
[425888935,1782024690000,-500.0,0.00028493,2]
[425888940,1782024690000,-541.59,0.00028493,2]
[425888941,1782024690000,-500.0,0.00028493,2]
[425888950,1782024690000,-500.0,0.00028493,2]
[425888938,1782024690000,-582.2,0.00028493,2]
[425888939,1782024690000,-830.76,0.00028493,2]
[425888934,1782024690000,-500.0,0.00028493,2]
[425888937,1782024690000,-500.0,0.00028493,2]
[425888933,1782024690000,-691.64,0.00028493,2]
[425888949,1782024690000,-500.0,0.00028493,2]
[425888993,1782024691000,-500.0,0.00028493,2]
[425888996,1782024691000,-575.75,0.00028493,2]
[425888992,1782024691000,-859.84,0.00028493,2]
[425888991,1782024691000,-500.0,0.00028493,2]
[425888990,1782024691000,-876.08,0.00028493,2]
[425888994,1782024691000,-500.0,0.00028493,2]
[425888998,1782024691000,-500.0,0.00028493,2]
[425889003,1782024691000,-500.0,0.00028493,2]
[425888995,1782024691000,-500.0,0.00028493,2]
[425888999,1782024691000,-500.0,0.00028493,2]
[425889002,1782024691000,-726.74,0.00028493,2]
[425889001,1782024691000,-500.0,0.00028493,2]
[425888989,1782024691000,-500.0,0.00028493,2]
[425889000,1782024691000,-487.405477,0.00028493,2]
[425888997,1782024691000,-500.0,0.00028493,2]
[425888985,1782024691000,-500.0,0.00028493,2]
[425888974,1782024691000,-626.03,0.00028493,2]
[425888987,1782024691000,-500.0,0.00028493,2]
[425889004,1782024691000,-500.0,0.00028493,2]
[425888971,1782024691000,-500.0,0.00028493,2]
[425888972,1782024691000,-500.0,0.00028493,2]
[425888973,1782024691000,-500.0,0.00028493,2]
[425888976,1782024691000,-567.17,0.00028493,2]
[425888977,1782024691000,-675.27,0.00028493,2]
[425888975,1782024691000,-407.33576907,0.00028493,2]
[425888978,1782024691000,-524.71,0.00028493,2]
[425888979,1782024691000,-762.37,0.00028493,2]
[425888983,1782024691000,-743.19,0.00028493,2]
[425888981,1782024691000,-500.0,0.00028493,2]
[425888980,1782024691000,-500.0,0.00028493,2]
[425888982,1782024691000,-704.63,0.00028493,2]
[425888984,1782024691000,-500.0,0.00028493,2]
[425888988,1782024691000,-527.56,0.00028493,2]
[425888986,1782024691000,-500.0,0.00028493,2]
[425889005,1782024691000,-500.0,0.00028493,2]
[425889008,1782024691000,-622.55526934,0.00028493,2]
[425889010,1782024691000,-500.0,0.00028493,2]
[425889029,1782024691000,-500.0,0.00028493,2]
[425889031,1782024691000,-500.0,0.00028493,2]
[425889030,1782024691000,-500.0,0.00028493,2]
[425889027,1782024691000,-500.0,0.00028493,2]
[425889032,1782024691000,-500.0,0.00028493,2]
[425889033,1782024691000,-500.0,0.00028493,2]
[425889028,1782024691000,-3892.29,0.00028493,2]
[425889034,1782024691000,-500.0,0.00028493,2]
[425889037,1782024691000,-898.16,0.00028493,2]
[425889040,1782024691000,-589.05677392,0.00028493,2]
[425889039,1782024691000,-500.0,0.00028493,2]
[425889041,1782024691000,-500.0,0.00028493,2]
[425889038,1782024691000,-500.0,0.00028493,2]
[425889006,1782024691000,-984.14,0.00028493,2]
[425889036,1782024691000,-605.56,0.00028493,2]
[425889026,1782024691000,-1345.31,0.00028493,2]
[425889035,1782024691000,-500.0,0.00028493,2]
[425889021,1782024691000,-650.02,0.00028493,2]
[425889012,1782024691000,-500.0,0.00028493,2]
[425889024,1782024691000,-670.3,0.00028493,2]
[425889015,1782024691000,-1276.27,0.00028493,2]
[425889007,1782024691000,-500.0,0.00028493,2]
[425889011,1782024691000,-1788.46,0.00028493,2]
[425889014,1782024691000,-500.0,0.00028493,2]
[425889013,1782024691000,-500.0,0.00028493,2]
[425889009,1782024691000,-500.0,0.00028493,2]
[425889025,1782024691000,-649.55,0.00028493,2]
[425889023,1782024691000,-500.0,0.00028493,2]
[425889018,1782024691000,-500.0,0.00028493,2]
[425889017,1782024691000,-913.08,0.00028493,2]
[425889016,1782024691000,-500.0,0.00028493,2]
[425889019,1782024691000,-914.48,0.00028493,2]
[425889022,1782024691000,-695.39,0.00028493,2]
[425889020,1782024691000,-500.0,0.00028493,2]
[425889061,1782024692000,-500.0,0.00028493,2]
[425889074,1782024692000,-500.0,0.00028493,2]
[425889070,1782024692000,-551.15,0.00028493,2]
[425889067,1782024692000,-569.73648541,0.00028493,2]
[425889068,1782024692000,-788.18,0.00028493,2]
[425889082,1782024692000,-500.0,0.00028493,2]
[425889072,1782024692000,-425.36113456,0.00028493,2]
[425889069,1782024692000,-230.40431845,0.00028493,2]
[425889071,1782024692000,-504.95,0.00028493,2]
[425889085,1782024692000,-500.0,0.00028493,2]
[425889073,1782024692000,-500.0,0.00028493,2]
[425889076,1782024692000,-500.0,0.00028493,2]
[425889077,1782024692000,-500.0,0.00028493,2]
[425889079,1782024692000,-583.69,0.00028493,2]
[425889078,1782024692000,-500.0,0.00028493,2]
[425889080,1782024692000,-1658.06,0.00028493,2]
[425889084,1782024692000,-886.41,0.00028493,2]
[425889081,1782024692000,-661.33,0.00028493,2]
[425889062,1782024692000,-500.0,0.00028493,2]
[425889075,1782024692000,-612.64,0.00028493,2]
[425889057,1782024692000,-500.0,0.00028493,2]
[425889051,1782024692000,-500.0,0.00028493,2]
[425889066,1782024692000,-500.0,0.00028493,2]
[425889042,1782024692000,-500.0,0.00028493,2]
[425889043,1782024692000,-500.0,0.00028493,2]
[425889055,1782024692000,-500.0,0.00028493,2]
[425889054,1782024692000,-500.0,0.00028493,2]
[425889046,1782024692000,-500.0,0.00028493,2]
[425889045,1782024692000,-697.05,0.00028493,2]
[425889050,1782024692000,-500.0,0.00028493,2]
[425889044,1782024692000,-500.0,0.00028493,2]
[425889048,1782024692000,-884.2,0.00028493,2]
[425889047,1782024692000,-500.0,0.00028493,2]
[425889049,1782024692000,-512.97,0.00028493,2]
[425889052,1782024692000,-186.97149095,0.00028493,2]
[425889053,1782024692000,-500.0,0.00028493,2]
[425889056,1782024692000,-500.0,0.00028493,2]
[425889060,1782024692000,-516.83,0.00028493,2]
[425889064,1782024692000,-616.34,0.00028493,2]
[425889065,1782024692000,-553.12,0.00028493,2]
[425889059,1782024692000,-500.0,0.00028493,2]
[425889063,1782024692000,-500.0,0.00028493,2]
[425889058,1782024692000,-500.0,0.00028493,2]
[425889083,1782024692000,-794.85,0.00028493,2]
[425889104,1782024692000,-500.0,0.00028493,2]
[425889086,1782024692000,-500.0,0.00028493,2]
[425889113,1782024692000,-500.0,0.00028493,2]
[425889114,1782024692000,-500.0,0.00028493,2]
[425889115,1782024692000,-500.0,0.00028493,2]
[425889112,1782024692000,-1307.86,0.00028493,2]
[425889116,1782024692000,-500.0,0.00028493,2]
[425889119,1782024692000,-1148.3,0.00028493,2]
[425889122,1782024692000,-500.0,0.00028493,2]
[425889121,1782024692000,-500.0,0.00028493,2]
[425889118,1782024692000,-500.0,0.00028493,2]
[425889117,1782024692000,-500.0,0.00028493,2]
[425889120,1782024692000,-5137.66,0.00028493,2]
[425889123,1782024692000,-500.0,0.00028493,2]
[425889126,1782024692000,-500.0,0.00028493,2]
[425889124,1782024692000,-2357.13,0.00028493,2]
[425889127,1782024692000,-2404.55,0.00028493,2]
[425889129,1782024692000,-500.0,0.00028493,2]
[425889130,1782024692000,-500.0,0.00028493,2]
[425889128,1782024692000,-500.0,0.00028493,2]
[425889091,1782024692000,-500.0,0.00028493,2]
[425889111,1782024692000,-867.45,0.00028493,2]
[425889110,1782024692000,-500.0,0.00028493,2]
[425889125,1782024692000,-500.0,0.00028493,2]
[425889107,1782024692000,-500.0,0.00028493,2]
[425889087,1782024692000,-276.24088317,0.00028493,2]
[425889109,1782024692000,-795.37,0.00028493,2]
[425889090,1782024692000,-500.0,0.00028493,2]
[425889089,1782024692000,-500.0,0.00028493,2]
[425889088,1782024692000,-500.0,0.00028493,2]
[425889094,1782024692000,-500.0,0.00028493,2]
[425889093,1782024692000,-500.0,0.00028493,2]
[425889095,1782024692000,-500.0,0.00028493,2]
[425889096,1782024692000,-500.0,0.00028493,2]
[425889092,1782024692000,-500.0,0.00028493,2]
[425889098,1782024692000,-500.0,0.00028493,2]
[425889100,1782024692000,-765.86,0.00028493,2]
[425889102,1782024692000,-500.0,0.00028493,2]
[425889105,1782024692000,-500.0,0.00028493,2]
[425889099,1782024692000,-6762.29,0.00028493,2]
[425889101,1782024692000,-500.0,0.00028493,2]
[425889103,1782024692000,-712.17,0.00028493,2]
[425889097,1782024692000,-658.55,0.00028493,2]
[425889106,1782024692000,-749.43,0.00028493,2]
[425889108,1782024692000,-500.0,0.00028493,2]
[425889167,1782024693000,-880.39,0.00028493,2]
[425889166,1782024693000,-520.51936277,0.00028493,2]
[425889169,1782024693000,-500.0,0.00028493,2]
[425889168,1782024693000,-886.26,0.00028493,2]
[425889162,1782024693000,-532.76,0.00028493,2]
[425889164,1782024693000,-500.0,0.00028493,2]
[425889163,1782024693000,-533.53,0.00028493,2]
[425889161,1782024693000,-500.56,0.00028493,2]
[425889172,1782024693000,-516.06707967,0.00028493,2]
[425889159,1782024693000,-172.35763617,0.00028493,2]
[425889165,1782024693000,-500.0,0.00028493,2]
[425889177,1782024693000,-500.0,0.00028493,2]
[425889183,1782024693000,-500.0,0.00028493,2]
[425889175,1782024693000,-500.0,0.00028493,2]
[425889176,1782024693000,-500.0,0.00028493,2]
[425889179,1782024693000,-500.0,0.00028493,2]
[425889178,1782024693000,-622.33,0.00028493,2]
[425889174,1782024693000,-500.0,0.00028493,2]
[425889180,1782024693000,-3234.89,0.00028493,2]
[425889182,1782024693000,-500.0,0.00028493,2]
[425889184,1782024693000,-500.0,0.00028493,2]
[425889186,1782024693000,-669.81,0.00028493,2]
[425889189,1782024693000,-500.0,0.00028493,2]
[425889190,1782024693000,-500.0,0.00028493,2]
[425889170,1782024693000,-500.0,0.00028493,2]
[425889173,1782024693000,-622.76,0.00028493,2]
[425889171,1782024693000,-500.0,0.00028493,2]
[425889145,1782024693000,-500.0,0.00028493,2]
[425889156,1782024693000,-500.0,0.00028493,2]
[425889131,1782024693000,-610.54,0.00028493,2]
[425889132,1782024693000,-500.0,0.00028493,2]
[425889133,1782024693000,-500.0,0.00028493,2]
[425889134,1782024693000,-500.0,0.00028493,2]
[425889135,1782024693000,-500.0,0.00028493,2]
[425889146,1782024693000,-2135.45,0.00028493,2]
[425889136,1782024693000,-500.0,0.00028493,2]
[425889185,1782024693000,-500.0,0.00028493,2]
[425889138,1782024693000,-500.0,0.00028493,2]
[425889137,1782024693000,-5681.37,0.00028493,2]
[425889141,1782024693000,-500.0,0.00028493,2]
[425889143,1782024693000,-500.0,0.00028493,2]
[425889142,1782024693000,-500.0,0.00028493,2]
[425889140,1782024693000,-656.16,0.00028493,2]
[425889139,1782024693000,-582.5,0.00028493,2]
[425889144,1782024693000,-500.0,0.00028493,2]
[425889147,1782024693000,-500.0,0.00028493,2]
[425889149,1782024693000,-501.16,0.00028493,2]
[425889148,1782024693000,-500.0,0.00028493,2]
[425889151,1782024693000,-1956.43,0.00028493,2]
[425889153,1782024693000,-500.0,0.00028493,2]
[425889152,1782024693000,-500.0,0.00028493,2]
[425889155,1782024693000,-500.0,0.00028493,2]
[425889150,1782024693000,-500.0,0.00028493,2]
[425889158,1782024693000,-636.47,0.00028493,2]
[425889157,1782024693000,-847.98,0.00028493,2]
[425889154,1782024693000,-500.0,0.00028493,2]
[425889160,1782024693000,-500.0,0.00028493,2]
[425889188,1782024693000,-500.0,0.00028493,2]
[425889181,1782024693000,-500.0,0.00028493,2]
[425889193,1782024693000,-500.0,0.00028493,2]
[425889219,1782024693000,-500.0,0.00028493,2]
[425889220,1782024693000,-500.0,0.00028493,2]
[425889229,1782024693000,-500.0,0.00028493,2]
[425889224,1782024693000,-500.0,0.00028493,2]
[425889223,1782024693000,-500.0,0.00028493,2]
[425889228,1782024693000,-551.99,0.00028493,2]
[425889227,1782024693000,-500.0,0.00028493,2]
[425889231,1782024693000,-500.0,0.00028493,2]
[425889230,1782024693000,-559.44,0.00028493,2]
[425889232,1782024693000,-500.0,0.00028493,2]
[425889234,1782024693000,-500.0,0.00028493,2]
[425889233,1782024693000,-797.65,0.00028493,2]
[425889222,1782024693000,-515.13685003,0.00028493,2]
[425889239,1782024693000,-186.5267354,0.00028493,2]
[425889238,1782024693000,-500.0,0.00028493,2]
[425889240,1782024693000,-597.51,0.00028493,2]
[425889236,1782024693000,-500.0,0.00028493,2]
[425889241,1782024693000,-500.0,0.00028493,2]
[425889243,1782024693000,-2244.17,0.00028493,2]
[425889246,1782024693000,-500.0,0.00028493,2]
[425889244,1782024693000,-500.0,0.00028493,2]
[425889245,1782024693000,-500.0,0.00028493,2]
[425889248,1782024693000,-801.08,0.00028493,2]
[425889247,1782024693000,-301.69932245,0.00028493,2]
[425889242,1782024693000,-607.73,0.00028493,2]
[425889194,1782024693000,-500.0,0.00028493,2]
[425889237,1782024693000,-500.0,0.00028493,2]
[425889226,1782024693000,-951.86,0.00028493,2]
[425889235,1782024693000,-631.3,0.00028493,2]
[425889221,1782024693000,-2642.89,0.00028493,2]
[425889225,1782024693000,-500.0,0.00028493,2]
[425889187,1782024693000,-500.0,0.00028493,2]
[425889191,1782024693000,-5195.03,0.00028493,2]
[425889195,1782024693000,-500.0,0.00028493,2]
[425889197,1782024693000,-546.78,0.00028493,2]
[425889198,1782024693000,-500.0,0.00028493,2]
[425889200,1782024693000,-500.0,0.00028493,2]
[425889203,1782024693000,-259.27572544,0.00028493,2]
[425889206,1782024693000,-700.2,0.00028493,2]
[425889202,1782024693000,-500.0,0.00028493,2]
[425889199,1782024693000,-500.0,0.00028493,2]
[425889196,1782024693000,-691.64,0.00028493,2]
[425889201,1782024693000,-500.0,0.00028493,2]
[425889204,1782024693000,-500.0,0.00028493,2]
[425889192,1782024693000,-500.0,0.00028493,2]
[425889218,1782024693000,-500.0,0.00028493,2]
[425889205,1782024693000,-680.65,0.00028493,2]
[425889212,1782024693000,-500.0,0.00028493,2]
[425889213,1782024693000,-1309.86,0.00028493,2]
[425889216,1782024693000,-500.0,0.00028493,2]
[425889217,1782024693000,-765.84,0.00028493,2]
[425889211,1782024693000,-500.0,0.00028493,2]
[425889214,1782024693000,-500.0,0.00028493,2]
[425889210,1782024693000,-1599.41,0.00028493,2]
[425889209,1782024693000,-500.0,0.00028493,2]
[425889207,1782024693000,-500.0,0.00028493,2]
[425889208,1782024693000,-493.92772334,0.00028493,2]
[425889215,1782024693000,-772.18,0.00028493,2]
[425889280,1782024694000,-793.1,0.00028493,2]
[425889290,1782024694000,-500.0,0.00028493,2]
[425889288,1782024694000,-500.0,0.00028493,2]
[425889284,1782024694000,-500.0,0.00028493,2]
[425889283,1782024694000,-473.6458374,0.00028493,2]
[425889279,1782024694000,-500.0,0.00028493,2]
[425889287,1782024694000,-750.17,0.00028493,2]
[425889282,1782024694000,-538.04205075,0.00028493,2]
[425889281,1782024694000,-500.0,0.00028493,2]
[425889285,1782024694000,-764.69,0.00028493,2]
[425889292,1782024694000,-500.0,0.00028493,2]
[425889286,1782024694000,-535.45090985,0.00028493,2]
[425889293,1782024694000,-500.0,0.00028493,2]
[425889295,1782024694000,-500.0,0.00028493,2]
[425889298,1782024694000,-500.0,0.00028493,2]
[425889296,1782024694000,-896.34,0.00028493,2]
[425889294,1782024694000,-817.63,0.00028493,2]
[425889289,1782024694000,-564.37,0.00028493,2]
[425889297,1782024694000,-500.0,0.00028493,2]
[425889299,1782024694000,-500.0,0.00028493,2]
[425889311,1782024694000,-306.59777093,0.00028493,2]
[425889300,1782024694000,-6091.07,0.00028493,2]
[425889301,1782024694000,-7914.34,0.00028493,2]
[425889302,1782024694000,-500.0,0.00028493,2]
[425889303,1782024694000,-3320.81,0.00028493,2]
[425889306,1782024694000,-500.0,0.00028493,2]
[425889291,1782024694000,-701.53,0.00028493,2]
[425889277,1782024694000,-500.0,0.00028493,2]
[425889305,1782024694000,-585.48,0.00028493,2]
[425889273,1782024694000,-500.0,0.00028493,2]
[425889250,1782024694000,-500.0,0.00028493,2]
[425889251,1782024694000,-500.0,0.00028493,2]
[425889249,1782024694000,-500.0,0.00028493,2]
[425889252,1782024694000,-500.0,0.00028493,2]
[425889253,1782024694000,-1000.0,0.00028493,2]
[425889255,1782024694000,-903.03,0.00028493,2]
[425889258,1782024694000,-4062.39,0.00028493,2]
[425889256,1782024694000,-500.0,0.00028493,2]
[425889257,1782024694000,-500.0,0.00028493,2]
[425889265,1782024694000,-555.21,0.00028493,2]
[425889254,1782024694000,-500.0,0.00028493,2]
[425889259,1782024694000,-954.13,0.00028493,2]
[425889260,1782024694000,-904.48,0.00028493,2]
[425889261,1782024694000,-603.48,0.00028493,2]
[425889263,1782024694000,-500.0,0.00028493,2]
[425889264,1782024694000,-809.55,0.00028493,2]
[425889262,1782024694000,-624.26,0.00028493,2]
[425889269,1782024694000,-500.0,0.00028493,2]
[425889272,1782024694000,-500.0,0.00028493,2]
[425889274,1782024694000,-500.0,0.00028493,2]
[425889268,1782024694000,-500.0,0.00028493,2]
[425889266,1782024694000,-834.25,0.00028493,2]
[425889271,1782024694000,-500.0,0.00028493,2]
[425889270,1782024694000,-566.74,0.00028493,2]
[425889267,1782024694000,-1143.03,0.00028493,2]
[425889276,1782024694000,-622.27614938,0.00028493,2]
[425889275,1782024694000,-935.76,0.00028493,2]
[425889278,1782024694000,-500.0,0.00028493,2]
[425889307,1782024694000,-500.0,0.00028493,2]
[425889352,1782024694000,-300.0,0.00028493,2]
[425889310,1782024694000,-500.0,0.00028493,2]
[425889340,1782024694000,-500.0,0.00028493,2]
[425889343,1782024694000,-500.0,0.00028493,2]
[425889338,1782024694000,-678.31,0.00028493,2]
[425889344,1782024694000,-500.0,0.00028493,2]
[425889345,1782024694000,-500.0,0.00028493,2]
[425889348,1782024694000,-1058.21,0.00028493,2]
[425889349,1782024694000,-1188.54,0.00028493,2]
[425889346,1782024694000,-500.0,0.00028493,2]
[425889347,1782024694000,-962.41,0.00028493,2]
[425889351,1782024694000,-500.0,0.00028493,2]
[425889362,1782024694000,-705.63,0.00028493,2]
[425889361,1782024694000,-540.15547764,0.00028493,2]
[425889350,1782024694000,-500.0,0.00028493,2]
[425889353,1782024694000,-527.19,0.00028493,2]
[425889356,1782024694000,-616.72,0.00028493,2]
[425889355,1782024694000,-624.11,0.00028493,2]
[425889354,1782024694000,-500.0,0.00028493,2]
[425889357,1782024694000,-1447.03,0.00028493,2]
[425889359,1782024694000,-500.0,0.00028493,2]
[425889358,1782024694000,-769.38,0.00028493,2]
[425889360,1782024694000,-500.0,0.00028493,2]
[425889363,1782024694000,-500.0,0.00028493,2]
[425889368,1782024694000,-500.0,0.00028493,2]
[425889365,1782024694000,-827.57,0.00028493,2]
[425889366,1782024694000,-500.0,0.00028493,2]
[425889367,1782024694000,-500.0,0.00028493,2]
[425889304,1782024694000,-500.0,0.00028493,2]
[425889342,1782024694000,-500.0,0.00028493,2]
[425889341,1782024694000,-900.08,0.00028493,2]
[425889364,1782024694000,-500.0,0.00028493,2]
[425889337,1782024694000,-500.0,0.00028493,2]
[425889339,1782024694000,-876.37,0.00028493,2]
[425889308,1782024694000,-924.41,0.00028493,2]
[425889314,1782024694000,-500.0,0.00028493,2]
[425889313,1782024694000,-583.57,0.00028493,2]
[425889312,1782024694000,-1092.23,0.00028493,2]
[425889315,1782024694000,-500.0,0.00028493,2]
[425889317,1782024694000,-500.0,0.00028493,2]
[425889323,1782024694000,-500.0,0.00028493,2]
[425889316,1782024694000,-1089.42,0.00028493,2]
[425889320,1782024694000,-500.0,0.00028493,2]
[425889321,1782024694000,-500.0,0.00028493,2]
[425889319,1782024694000,-500.0,0.00028493,2]
[425889322,1782024694000,-500.0,0.00028493,2]
[425889318,1782024694000,-1561.52,0.00028493,2]
[425889309,1782024694000,-500.0,0.00028493,2]
[425889334,1782024694000,-500.0,0.00028493,2]
[425889326,1782024694000,-784.42,0.00028493,2]
[425889327,1782024694000,-592.69,0.00028493,2]
[425889324,1782024694000,-635.35,0.00028493,2]
[425889335,1782024694000,-500.0,0.00028493,2]
[425889336,1782024694000,-500.0,0.00028493,2]
[425889328,1782024694000,-500.0,0.00028493,2]
[425889329,1782024694000,-500.0,0.00028493,2]
[425889333,1782024694000,-500.0,0.00028493,2]
[425889325,1782024694000,-500.0,0.00028493,2]
[425889331,1782024694000,-2788.13,0.00028493,2]
[425889332,1782024694000,-500.0,0.00028493,2]
[425889330,1782024694000,-500.0,0.00028493,2]
[425889407,1782024695000,-943.13,0.00028766,2]
[425889404,1782024695000,-151.0,0.00028708,2]
[425889401,1782024695000,-151.0,0.00028708,2]
[425889412,1782024695000,-158.30503689,0.00028766,2]
[425889406,1782024695000,-943.13,0.00028766,2]
[425889408,1782024695000,-943.13,0.00028766,2]
[425889410,1782024695000,-943.13,0.00028766,2]
[425889405,1782024695000,-151.0,0.00028708,2]
[425889403,1782024695000,-151.0,0.00028708,2]
[425889402,1782024695000,-151.0,0.00028708,2]
[425889411,1782024695000,-943.30669629,0.00028766,2]
[425889415,1782024695000,-500.0,0.00028767,2]
[425889409,1782024695000,-943.13,0.00028766,2]
[425889414,1782024695000,-500.0,0.00028767,2]
[425889421,1782024695000,-500.0,0.00028767,2]
[425889413,1782024695000,-384.27263653,0.00028767,15]
[425889419,1782024695000,-500.0,0.00028767,2]
[425889418,1782024695000,-500.0,0.00028767,2]
[425889416,1782024695000,-500.0,0.00028767,2]
[425889423,1782024695000,-620.59390427,0.00028767,2]
[425889422,1782024695000,-500.0,0.00028767,2]
[425889420,1782024695000,-1001.24,0.00028767,2]
[425889434,1782024695000,-500.0,0.00028767,2]
[425889425,1782024695000,-586.67,0.00028767,2]
[425889433,1782024695000,-855.16,0.00028767,2]
[425889436,1782024695000,-1117.63,0.00028767,2]